[Event "Titled Tuesday Blitz July 6 2021"]
[White "Alavi, Sayed Javad"]
[Black "Matinian, Nikita"]
[WhiteFideId "12500607"]
[BlackFideId "24129100"]
[WhiteElo "2495"]
[BlackElo "2410"]
[Result "1-0"]
[Round "11"]
[TimeControl "180+1"]
[Date "2021.07.06"]
[WhiteClock "0:00:09"]
[BlackClock "0:00:02"]

1. Nf3 {[%clk 0:03:00]}  d6 {[%clk 0:03:00]} 2. d4 {[%clk 0:03:00]}  Nf6 {[%clk 0:01:56]} 3. Nc3 {[%clk 0:02:52]}  Bf5 {[%clk 0:01:52]} 4. Nh4 {[%clk 0:02:51]}  Bg6 {[%clk 0:01:51]} 5. Nxg6 {[%clk 0:02:50]}  hxg6 {[%clk 0:01:52]} 6. e4 {[%clk 0:02:50]}  Nbd7 {[%clk 0:01:51]} 7. Be3 {[%clk 0:02:45]}  c6 {[%clk 0:01:49]} 8. f3 {[%clk 0:02:39]}  e5 {[%clk 0:01:49]} 9. Qd2 {[%clk 0:02:39]}  Qa5 {[%clk 0:01:48]} 10. Be2 {[%clk 0:02:29]}  Be7 {[%clk 0:01:47]} 11. a3 {[%clk 0:02:28]}  Nh5 {[%clk 0:01:41]} 12. O-O-O {[%clk 0:02:14]}  b5 {[%clk 0:01:39]} 13. Kb1 {[%clk 0:02:14]}  b4 {[%clk 0:01:37]} 14. Na2 {[%clk 0:02:13]}  Rb8 {[%clk 0:01:36]} 15. Nxb4 {[%clk 0:01:42]}  Rc8 {[%clk 0:01:07]} 16. d5 {[%clk 0:01:32]}  c5 {[%clk 0:01:05]} 17. Nc6 {[%clk 0:01:30]}  Qb6 {[%clk 0:01:01]} 18. g4 {[%clk 0:01:17]}  Nhf6 {[%clk 0:00:45]} 19. Ka2 {[%clk 0:01:04]}  Nb8 {[%clk 0:00:45]} 20. Na5 {[%clk 0:01:00]}  Nfd7 {[%clk 0:00:41]} 21. Rb1 {[%clk 0:01:00]}  Qc7 {[%clk 0:00:39]} 22. Bb5 {[%clk 0:00:58]}  a6 {[%clk 0:00:35]} 23. Ba4 {[%clk 0:00:57]}  Rh3 {[%clk 0:00:28]} 24. Qg2 {[%clk 0:00:54]}  Rh8 {[%clk 0:00:22]} 25. Nc4 {[%clk 0:00:54]}  Kf8 {[%clk 0:00:19]} 26. Bd2 {[%clk 0:00:52]}  g5 {[%clk 0:00:17]} 27. Ba5 {[%clk 0:00:49]}  Qb7 {[%clk 0:00:13]} 28. Qf2 {[%clk 0:00:44]}  Kg8 {[%clk 0:00:12]} 29. b4 {[%clk 0:00:42]}  Qa7 {[%clk 0:00:08]} 30. bxc5 {[%clk 0:00:30]}  Nxc5 {[%clk 0:00:08]} 31. Bb6 {[%clk 0:00:30]}  Qa8 {[%clk 0:00:07]} 32. Bxc5 {[%clk 0:00:24]}  Rxc5 {[%clk 0:00:08]} 33. Nb6 {[%clk 0:00:25]}  Qa7 {[%clk 0:00:08]} 34. Nc8 {[%clk 0:00:22]}  Qc7 {[%clk 0:00:05]} 35. Nxe7+ {[%clk 0:00:21]}  Kh7 {[%clk 0:00:05]} 36. Nc6 {[%clk 0:00:19]}  Nxc6 {[%clk 0:00:05]} 37. Bxc6 {[%clk 0:00:20]}  Kg6 {[%clk 0:00:04]} 38. Rb2 {[%clk 0:00:19]}  Rh3 {[%clk 0:00:03]} 39. Qg2 {[%clk 0:00:18]}  Rh4 {[%clk 0:00:04]} 40. Qf2 {[%clk 0:00:18]}  Qa5 {[%clk 0:00:04]} 41. Rf1 {[%clk 0:00:15]}  Rh3 {[%clk 0:00:02]} 42. Qg2 {[%clk 0:00:14]}  Rh4 {[%clk 0:00:02]} 43. Rb3 {[%clk 0:00:15]}  Qa4 {[%clk 0:00:02]} 44. Qe2 {[%clk 0:00:13]}  Qa5 {[%clk 0:00:02]} 45. Qf2 {[%clk 0:00:12]}  Rh3 {[%clk 0:00:01]} 46. Qg2 {[%clk 0:00:12]}  Rh4 {[%clk 0:00:02]} 47. Kb2 {[%clk 0:00:12]}  Qc7 {[%clk 0:00:02]} 48. Rd1 {[%clk 0:00:10]}  Qa5 {[%clk 0:00:02]} 49. Qf2 {[%clk 0:00:09]}  Qc7 {[%clk 0:00:02]} 50. Rdd3 {[%clk 0:00:09]}  Qa5 {[%clk 0:00:02]} 51. Rdc3 {[%clk 0:00:09]}  Rxc3 {[%clk 0:00:02]} 52. Rxc3 {[%clk 0:00:10]}  Rh8 {[%clk 0:00:02]} 53. Rb3 {[%clk 0:00:10]}  Qc7 {[%clk 0:00:03]} 54. Qb6 {[%clk 0:00:10]}  Qe7 {[%clk 0:00:03]} 55. Qb7 {[%clk 0:00:09]}  Qf6 {[%clk 0:00:03]} 56. Bd7 {[%clk 0:00:09]}  Rxh2 {[%clk 0:00:03]} 57. Bf5+ {[%clk 0:00:09]}  Kh6 {[%clk 0:00:03]} 58. Qc8 {[%clk 0:00:08]}  g6 {[%clk 0:00:04]} 59. Rb8 {[%clk 0:00:08]}  gxf5 {[%clk 0:00:03]} 60. Qh8+ {[%clk 0:00:08]}  Qxh8 {[%clk 0:00:02]} 61. Rxh8+ {[%clk 0:00:09]} 1-0


[Site "https://www.chess.com"]

[Event "Titled Tuesday Blitz July 6 2021"]
[White "AleksanderHnydiuk"]
[Black "Sardana, Rishi"]
[BlackFideId "25004301"]
[WhiteElo "2574"]
[BlackElo "2340"]
[Result "1-0"]
[Round "11"]
[TimeControl "180+1"]
[Date "2021.07.06"]
[WhiteClock "0:00:16"]
[BlackClock "0:00:04"]

1. d4 {[%clk 0:03:00]}  Nf6 {[%clk 0:03:00]} 2. c4 {[%clk 0:03:01]}  e6 {[%clk 0:03:00]} 3. g3 {[%clk 0:03:00]}  d5 {[%clk 0:03:00]} 4. Nf3 {[%clk 0:03:00]}  Bb4+ {[%clk 0:03:00]} 5. Bd2 {[%clk 0:03:00]}  Be7 {[%clk 0:03:00]} 6. Bg2 {[%clk 0:03:00]}  O-O {[%clk 0:03:00]} 7. O-O {[%clk 0:03:01]}  Nbd7 {[%clk 0:03:01]} 8. Qc2 {[%clk 0:03:01]}  c6 {[%clk 0:03:01]} 9. Bf4 {[%clk 0:03:00]}  b6 {[%clk 0:03:01]} 10. Nbd2 {[%clk 0:02:57]}  Nh5 {[%clk 0:02:34]} 11. Be3 {[%clk 0:02:56]}  Bb7 {[%clk 0:02:27]} 12. Rfc1 {[%clk 0:02:56]}  Rc8 {[%clk 0:02:16]} 13. Qa4 {[%clk 0:02:46]}  a6 {[%clk 0:02:11]} 14. cxd5 {[%clk 0:02:42]}  b5 {[%clk 0:02:09]} 15. Qb3 {[%clk 0:02:38]}  cxd5 {[%clk 0:02:09]} 16. a4 {[%clk 0:02:34]}  b4 {[%clk 0:02:01]} 17. Ne5 {[%clk 0:02:22]}  Nhf6 {[%clk 0:01:42]} 18. Bg5 {[%clk 0:02:21]}  a5 {[%clk 0:01:11]} 19. Nxd7 {[%clk 0:02:21]}  Qxd7 {[%clk 0:01:11]} 20. Nf3 {[%clk 0:02:18]}  Ba6 {[%clk 0:01:08]} 21. Ne5 {[%clk 0:02:17]}  Qb7 {[%clk 0:01:08]} 22. Bf1 {[%clk 0:02:03]}  h6 {[%clk 0:00:58]} 23. Bxf6 {[%clk 0:02:03]}  Bxf6 {[%clk 0:00:59]} 24. e3 {[%clk 0:01:54]}  Bxf1 {[%clk 0:00:57]} 25. Kxf1 {[%clk 0:01:55]}  Bxe5 {[%clk 0:00:57]} 26. dxe5 {[%clk 0:01:56]}  d4 {[%clk 0:00:57]} 27. Kg1 {[%clk 0:01:50]}  Qf3 {[%clk 0:00:50]} 28. Qd3 {[%clk 0:01:36]}  dxe3 {[%clk 0:00:39]} 29. Qxe3 {[%clk 0:01:35]}  Qxe3 {[%clk 0:00:38]} 30. fxe3 {[%clk 0:01:35]}  Rfd8 {[%clk 0:00:37]} 31. b3 {[%clk 0:01:23]}  Rxc1+ {[%clk 0:00:32]} 32. Rxc1 {[%clk 0:01:24]}  Rd5 {[%clk 0:00:23]} 33. Rc4 {[%clk 0:01:04]}  Rxe5 {[%clk 0:00:23]} 34. e4 {[%clk 0:01:04]}  f5 {[%clk 0:00:20]} 35. exf5 {[%clk 0:00:57]}  exf5 {[%clk 0:00:21]} 36. Kf2 {[%clk 0:00:57]}  Kf7 {[%clk 0:00:21]} 37. Rc7+ {[%clk 0:00:53]}  Kf6 {[%clk 0:00:21]} 38. Rc6+ {[%clk 0:00:53]}  Kg5 {[%clk 0:00:16]} 39. Kf3 {[%clk 0:00:50]}  Kh5 {[%clk 0:00:09]} 40. Kf4 {[%clk 0:00:45]}  Rd5 {[%clk 0:00:07]} 41. Ke3 {[%clk 0:00:42]}  g5 {[%clk 0:00:06]} 42. h3 {[%clk 0:00:39]}  g4 {[%clk 0:00:03]} 43. h4 {[%clk 0:00:36]}  Re5+ {[%clk 0:00:03]} 44. Kf4 {[%clk 0:00:34]}  Rd5 {[%clk 0:00:04]} 45. Rf6 {[%clk 0:00:31]}  Rd3 {[%clk 0:00:03]} 46. Rxf5+ {[%clk 0:00:29]}  Kg6 {[%clk 0:00:03]} 47. h5+ {[%clk 0:00:29]}  Kg7 {[%clk 0:00:03]} 48. Rxa5 {[%clk 0:00:30]}  Rxb3 {[%clk 0:00:02]} 49. Rb5 {[%clk 0:00:29]}  Rb1 {[%clk 0:00:02]} 50. Kxg4 {[%clk 0:00:29]}  b3 {[%clk 0:00:03]} 51. a5 {[%clk 0:00:29]}  b2 {[%clk 0:00:03]} 52. a6 {[%clk 0:00:28]}  Ra1 {[%clk 0:00:03]} 53. Rb7+ {[%clk 0:00:28]}  Kf6 {[%clk 0:00:03]} 54. Rb6+ {[%clk 0:00:28]}  Kg7 {[%clk 0:00:03]} 55. Rxb2 {[%clk 0:00:29]}  Rxa6 {[%clk 0:00:03]} 56. Rb4 {[%clk 0:00:27]}  Kf6 {[%clk 0:00:03]} 57. Rf4+ {[%clk 0:00:28]}  Kg7 {[%clk 0:00:03]} 58. Kf5 {[%clk 0:00:28]}  Ra5+ {[%clk 0:00:02]} 59. Kg4 {[%clk 0:00:27]}  Rg5+ {[%clk 0:00:03]} 60. Kh4 {[%clk 0:00:27]}  Rd5 {[%clk 0:00:04]} 61. Rg4+ {[%clk 0:00:28]}  Kh7 {[%clk 0:00:04]} 62. Rg6 {[%clk 0:00:28]}  Rd4+ {[%clk 0:00:04]} 63. g4 {[%clk 0:00:28]}  Rd1 {[%clk 0:00:04]} 64. Re6 {[%clk 0:00:25]}  Rf1 {[%clk 0:00:04]} 65. Kg3 {[%clk 0:00:24]}  Rf7 {[%clk 0:00:04]} 66. Re4 {[%clk 0:00:23]}  Kg7 {[%clk 0:00:04]} 67. Rf4 {[%clk 0:00:24]}  Rb7 {[%clk 0:00:05]} 68. Rf5 {[%clk 0:00:23]}  Rb3+ {[%clk 0:00:05]} 69. Kh4 {[%clk 0:00:23]}  Rb4 {[%clk 0:00:06]} 70. Rd5 {[%clk 0:00:22]}  Rb7 {[%clk 0:00:06]} 71. Rd6 {[%clk 0:00:23]}  Rc7 {[%clk 0:00:06]} 72. Kg3 {[%clk 0:00:22]}  Rc3+ {[%clk 0:00:06]} 73. Kf4 {[%clk 0:00:23]}  Rc4+ {[%clk 0:00:06]} 74. Kf5 {[%clk 0:00:23]}  Rc5+ {[%clk 0:00:07]} 75. Ke4 {[%clk 0:00:23]}  Rc4+ {[%clk 0:00:07]} 76. Rd4 {[%clk 0:00:22]}  Rc7 {[%clk 0:00:07]} 77. Ke5 {[%clk 0:00:22]}  Rc5+ {[%clk 0:00:05]} 78. Ke6 {[%clk 0:00:21]}  Rg5 {[%clk 0:00:05]} 79. Rd7+ {[%clk 0:00:17]}  Kg8 {[%clk 0:00:05]} 80. Rd4 {[%clk 0:00:18]}  Kg7 {[%clk 0:00:05]} 81. Rf4 {[%clk 0:00:18]}  Kg8 {[%clk 0:00:05]} 82. Kf6 {[%clk 0:00:18]}  Kf8 {[%clk 0:00:05]} 83. Ra4 {[%clk 0:00:17]}  Kg8 {[%clk 0:00:04]} 84. Ra8+ {[%clk 0:00:16]}  Kh7 {[%clk 0:00:04]} 85. Ra7+ {[%clk 0:00:17]}  Kh8 {[%clk 0:00:05]} 86. Ra4 {[%clk 0:00:17]}  Kh7 {[%clk 0:00:05]} 87. Re4 {[%clk 0:00:17]}  Kg8 {[%clk 0:00:04]} 88. Rd4 {[%clk 0:00:16]}  Kh7 {[%clk 0:00:05]} 89. Kf7 {[%clk 0:00:16]}  Rg7+ {[%clk 0:00:03]} 90. Ke6 {[%clk 0:00:16]}  Rg5 {[%clk 0:00:03]} 91. Kf6 {[%clk 0:00:16]}  Rg7 {[%clk 0:00:03]} 92. Kf5 {[%clk 0:00:15]}  Rg5+ {[%clk 0:00:03]} 93. Kf4 {[%clk 0:00:15]}  Kg7 {[%clk 0:00:03]} 94. Re4 {[%clk 0:00:15]}  Rb5 {[%clk 0:00:02]} 95. Re7+ {[%clk 0:00:15]}  Kf6 {[%clk 0:00:02]} 96. Rh7 {[%clk 0:00:15]}  Rb4+ {[%clk 0:00:03]} 97. Kg3 {[%clk 0:00:15]}  Kg5 {[%clk 0:00:04]} 98. Rg7+ {[%clk 0:00:15]}  Kf6 {[%clk 0:00:04]} 99. Rg6+ {[%clk 0:00:16]} 1-0


[Site "https://www.chess.com"]

[Event "Titled Tuesday Blitz July 6 2021"]
[White "Arabidze, Meri"]
[Black "Leitao, Rafael"]
[WhiteFideId "13604040"]
[BlackFideId "2101246"]
[WhiteElo "2432"]
[BlackElo "2609"]
[Result "0-1"]
[Round "11"]
[TimeControl "180+1"]
[Date "2021.07.06"]
[WhiteClock "0:00:05"]
[BlackClock "0:00:08"]

1. d4 {[%clk 0:03:00]}  Nf6 {[%clk 0:02:52]} 2. Nf3 {[%clk 0:03:01]}  g6 {[%clk 0:02:49]} 3. g3 {[%clk 0:03:01]}  Bg7 {[%clk 0:02:49]} 4. Bg2 {[%clk 0:03:02]}  O-O {[%clk 0:02:49]} 5. O-O {[%clk 0:03:03]}  d6 {[%clk 0:02:49]} 6. a4 {[%clk 0:03:03]}  a5 {[%clk 0:02:43]} 7. Re1 {[%clk 0:03:03]}  Nbd7 {[%clk 0:02:41]} 8. e4 {[%clk 0:03:01]}  e5 {[%clk 0:02:41]} 9. Nc3 {[%clk 0:03:01]}  Re8 {[%clk 0:02:40]} 10. h3 {[%clk 0:02:59]}  exd4 {[%clk 0:02:36]} 11. Nxd4 {[%clk 0:02:59]}  Nc5 {[%clk 0:02:37]} 12. Ndb5 {[%clk 0:02:53]}  Bd7 {[%clk 0:02:27]} 13. f3 {[%clk 0:02:34]}  Bc6 {[%clk 0:02:25]} 14. g4 {[%clk 0:02:29]}  Nfd7 {[%clk 0:02:02]} 15. Be3 {[%clk 0:01:52]}  Nb6 {[%clk 0:01:45]} 16. Bd4 {[%clk 0:01:47]}  Bh6 {[%clk 0:01:30]} 17. b3 {[%clk 0:01:44]}  Ne6 {[%clk 0:01:30]} 18. Be3 {[%clk 0:01:20]}  Bxe3+ {[%clk 0:01:26]} 19. Rxe3 {[%clk 0:01:20]}  Nf4 {[%clk 0:01:26]} 20. Ne2 {[%clk 0:01:10]}  Nxg2 {[%clk 0:01:17]} 21. Kxg2 {[%clk 0:01:11]}  f5 {[%clk 0:01:14]} 22. Nbd4 {[%clk 0:00:55]}  fxe4 {[%clk 0:01:12]} 23. Nxc6 {[%clk 0:00:55]}  exf3+ {[%clk 0:01:12]} 24. Rxf3 {[%clk 0:00:56]}  bxc6 {[%clk 0:01:12]} 25. Nd4 {[%clk 0:00:47]}  c5 {[%clk 0:01:11]} 26. Nb5 {[%clk 0:00:47]}  Qe7 {[%clk 0:01:07]} 27. Qd3 {[%clk 0:00:42]}  Qe2+ {[%clk 0:01:03]} 28. Qxe2 {[%clk 0:00:42]}  Rxe2+ {[%clk 0:01:03]} 29. Rf2 {[%clk 0:00:42]}  Rxf2+ {[%clk 0:01:00]} 30. Kxf2 {[%clk 0:00:43]}  Rf8+ {[%clk 0:00:59]} 31. Kg3 {[%clk 0:00:43]}  Rf7 {[%clk 0:00:58]} 32. Re1 {[%clk 0:00:41]}  Kf8 {[%clk 0:00:57]} 33. Na7 {[%clk 0:00:35]}  Nd5 {[%clk 0:00:52]} 34. Nc6 {[%clk 0:00:35]}  Nb4 {[%clk 0:00:50]} 35. Nxa5 {[%clk 0:00:35]}  Nxc2 {[%clk 0:00:50]} 36. Rb1 {[%clk 0:00:24]}  Nd4 {[%clk 0:00:50]} 37. Kg2 {[%clk 0:00:20]}  c6 {[%clk 0:00:41]} 38. Nc4 {[%clk 0:00:16]}  d5 {[%clk 0:00:39]} 39. Ne5 {[%clk 0:00:15]}  Rb7 {[%clk 0:00:38]} 40. a5 {[%clk 0:00:12]}  Ra7 {[%clk 0:00:38]} 41. Ra1 {[%clk 0:00:08]}  Nxb3 {[%clk 0:00:37]} 42. Nxc6 {[%clk 0:00:09]}  Ra6 {[%clk 0:00:34]} 43. Ra3 {[%clk 0:00:07]}  c4 {[%clk 0:00:33]} 44. Nb4 {[%clk 0:00:05]}  Rxa5 {[%clk 0:00:33]} 45. Rxa5 {[%clk 0:00:06]}  Nxa5 {[%clk 0:00:34]} 46. Nxd5 {[%clk 0:00:07]}  Kf7 {[%clk 0:00:34]} 47. Kf3 {[%clk 0:00:06]}  Ke6 {[%clk 0:00:33]} 48. Ke4 {[%clk 0:00:06]}  Nc6 {[%clk 0:00:30]} 49. Nc3 {[%clk 0:00:05]}  Kd6 {[%clk 0:00:30]} 50. Na4 {[%clk 0:00:05]}  Ke6 {[%clk 0:00:27]} 51. Nc3 {[%clk 0:00:05]}  Ne5 {[%clk 0:00:24]} 52. Na4 {[%clk 0:00:04]}  Kd6 {[%clk 0:00:20]} 53. Kd4 {[%clk 0:00:05]}  Nf3+ {[%clk 0:00:20]} 54. Kxc4 {[%clk 0:00:05]}  Ke5 {[%clk 0:00:20]} 55. Kd3 {[%clk 0:00:05]}  Kf4 {[%clk 0:00:21]} 56. Ke2 {[%clk 0:00:05]}  Kg3 {[%clk 0:00:21]} 57. Nc5 {[%clk 0:00:05]}  Ng5 {[%clk 0:00:21]} 58. Ke3 {[%clk 0:00:05]}  Nxh3 {[%clk 0:00:21]} 59. Ne6 {[%clk 0:00:05]}  Kxg4 {[%clk 0:00:20]} 60. Nf8 {[%clk 0:00:05]}  Ng5 {[%clk 0:00:20]} 61. Kf2 {[%clk 0:00:04]}  Kf5 {[%clk 0:00:20]} 62. Kg3 {[%clk 0:00:04]}  Ne4+ {[%clk 0:00:20]} 63. Kh4 {[%clk 0:00:05]}  h5 {[%clk 0:00:20]} 64. Nh7 {[%clk 0:00:04]}  Nf6 {[%clk 0:00:20]} 65. Ng5 {[%clk 0:00:04]}  Kf4 {[%clk 0:00:19]} 66. Ne6+ {[%clk 0:00:04]}  Kf5 {[%clk 0:00:19]} 67. Ng7+ {[%clk 0:00:04]}  Kf4 {[%clk 0:00:17]} 68. Ne6+ {[%clk 0:00:04]}  Ke5 {[%clk 0:00:17]} 69. Nf8 {[%clk 0:00:04]}  Kf5 {[%clk 0:00:14]} 70. Kg3 {[%clk 0:00:05]}  g5 {[%clk 0:00:15]} 71. Kf3 {[%clk 0:00:05]}  h4 {[%clk 0:00:15]} 72. Kg2 {[%clk 0:00:05]}  g4 {[%clk 0:00:16]} 73. Kh2 {[%clk 0:00:05]}  g3+ {[%clk 0:00:15]} 74. Kh3 {[%clk 0:00:05]}  Ne4 {[%clk 0:00:11]} 75. Nd7 {[%clk 0:00:05]}  Ng5+ {[%clk 0:00:11]} 76. Kg2 {[%clk 0:00:05]}  Kf4 {[%clk 0:00:09]} 77. Nf6 {[%clk 0:00:05]}  h3+ {[%clk 0:00:09]} 78. Kg1 {[%clk 0:00:05]}  Nf3+ {[%clk 0:00:08]} 79. Kf1 {[%clk 0:00:05]}  g2+ {[%clk 0:00:09]} 80. Ke2 {[%clk 0:00:05]}  g1=Q {[%clk 0:00:08]} 0-1


[Site "https://www.chess.com"]

[Event "Titled Tuesday Blitz July 6 2021"]
[White "Assaubayeva, Bibisara"]
[Black "Lopez Gracia, Fernando"]
[WhiteFideId "13708694"]
[BlackFideId "2207184"]
[WhiteElo "2232"]
[BlackElo "2421"]
[Result "1-0"]
[Round "11"]
[TimeControl "180+1"]
[Date "2021.07.06"]
[WhiteClock "0:00:11"]
[BlackClock "0:00:20"]

1. d4 {[%clk 0:03:00]}  Nf6 {[%clk 0:02:58]} 2. c4 {[%clk 0:03:01]}  e6 {[%clk 0:02:57]} 3. Nf3 {[%clk 0:03:01]}  c5 {[%clk 0:02:57]} 4. d5 {[%clk 0:03:01]}  exd5 {[%clk 0:02:58]} 5. cxd5 {[%clk 0:03:01]}  d6 {[%clk 0:02:59]} 6. Nc3 {[%clk 0:03:01]}  g6 {[%clk 0:02:59]} 7. Bf4 {[%clk 0:03:01]}  Bg7 {[%clk 0:02:58]} 8. Qa4+ {[%clk 0:03:01]}  Bd7 {[%clk 0:02:57]} 9. Qb3 {[%clk 0:03:01]}  b5 {[%clk 0:02:51]} 10. Bxd6 {[%clk 0:03:01]}  c4 {[%clk 0:02:51]} 11. Qa3 {[%clk 0:02:47]}  Qb6 {[%clk 0:02:18]} 12. Qc5 {[%clk 0:01:56]}  Na6 {[%clk 0:01:48]} 13. Qxb6 {[%clk 0:01:53]}  axb6 {[%clk 0:01:49]} 14. Be5 {[%clk 0:01:38]}  O-O {[%clk 0:01:44]} 15. e3 {[%clk 0:01:36]}  Nc5 {[%clk 0:01:39]} 16. Rd1 {[%clk 0:01:29]}  b4 {[%clk 0:01:33]} 17. Nb1 {[%clk 0:01:27]}  b5 {[%clk 0:01:29]} 18. a3 {[%clk 0:01:27]}  bxa3 {[%clk 0:01:25]} 19. Nxa3 {[%clk 0:01:25]}  Rfe8 {[%clk 0:01:26]} 20. Be2 {[%clk 0:01:21]}  Na4 {[%clk 0:01:21]} 21. O-O {[%clk 0:01:14]}  Ne4 {[%clk 0:01:14]} 22. Bxg7 {[%clk 0:01:10]}  Kxg7 {[%clk 0:00:57]} 23. Rb1 {[%clk 0:01:03]}  Nxb2 {[%clk 0:00:56]} 24. Nxb5 {[%clk 0:01:02]}  Ra2 {[%clk 0:00:42]} 25. Nbd4 {[%clk 0:00:45]}  Nc3 {[%clk 0:00:35]} 26. Ra1 {[%clk 0:00:39]}  Rea8 {[%clk 0:00:33]} 27. Rxa2 {[%clk 0:00:38]}  Rxa2 {[%clk 0:00:34]} 28. Ne5 {[%clk 0:00:32]}  Bb5 {[%clk 0:00:27]} 29. d6 {[%clk 0:00:23]}  Nxe2+ {[%clk 0:00:17]} 30. Nxe2 {[%clk 0:00:24]}  Nd3 {[%clk 0:00:16]} 31. Nc3 {[%clk 0:00:22]}  Rb2 {[%clk 0:00:10]} 32. d7 {[%clk 0:00:19]}  Bxd7 {[%clk 0:00:07]} 33. Nxd7 {[%clk 0:00:20]}  Rc2 {[%clk 0:00:06]} 34. Ne4 {[%clk 0:00:17]}  c3 {[%clk 0:00:07]} 35. Ndc5 {[%clk 0:00:17]}  Nb4 {[%clk 0:00:06]} 36. Nb3 {[%clk 0:00:12]}  f5 {[%clk 0:00:06]} 37. Nec5 {[%clk 0:00:12]}  Rb2 {[%clk 0:00:06]} 38. Nd4 {[%clk 0:00:12]}  c2 {[%clk 0:00:06]} 39. Ncb3 {[%clk 0:00:10]}  Rb1 {[%clk 0:00:05]} 40. g3 {[%clk 0:00:10]}  Kf6 {[%clk 0:00:03]} 41. Kg2 {[%clk 0:00:10]}  g5 {[%clk 0:00:02]} 42. Rc1 {[%clk 0:00:10]}  g4 {[%clk 0:00:02]} 43. h3 {[%clk 0:00:08]}  h5 {[%clk 0:00:02]} 44. hxg4 {[%clk 0:00:08]}  hxg4 {[%clk 0:00:03]} 45. f3 {[%clk 0:00:09]}  Rxc1 {[%clk 0:00:03]} 46. Nxc1 {[%clk 0:00:08]}  gxf3+ {[%clk 0:00:04]} 47. Kxf3 {[%clk 0:00:09]}  Ke5 {[%clk 0:00:05]} 48. Ke2 {[%clk 0:00:07]}  Ke4 {[%clk 0:00:05]} 49. Kd2 {[%clk 0:00:06]}  Nd5 {[%clk 0:00:05]} 50. Nxc2 {[%clk 0:00:06]}  f4 {[%clk 0:00:05]} 51. gxf4 {[%clk 0:00:05]}  Nxf4 {[%clk 0:00:06]} 52. Ne2 {[%clk 0:00:04]}  Nd5 {[%clk 0:00:06]} 53. Nc3+ {[%clk 0:00:04]}  Ke5 {[%clk 0:00:07]} 54. Nxd5 {[%clk 0:00:04]}  Kxd5 {[%clk 0:00:07]} 55. Kd3 {[%clk 0:00:05]}  Ke5 {[%clk 0:00:08]} 56. e4 {[%clk 0:00:06]}  Ke6 {[%clk 0:00:09]} 57. Ne3 {[%clk 0:00:07]}  Kd7 {[%clk 0:00:10]} 58. Nc4 {[%clk 0:00:07]}  Ke6 {[%clk 0:00:11]} 59. Kd4 {[%clk 0:00:08]}  Kd7 {[%clk 0:00:11]} 60. e5 {[%clk 0:00:09]}  Ke6 {[%clk 0:00:12]} 61. Ke4 {[%clk 0:00:09]}  Ke7 {[%clk 0:00:13]} 62. Kd5 {[%clk 0:00:09]}  Kd7 {[%clk 0:00:14]} 63. e6+ {[%clk 0:00:10]}  Ke7 {[%clk 0:00:15]} 64. Ke5 {[%clk 0:00:10]}  Ke8 {[%clk 0:00:16]} 65. Kd6 {[%clk 0:00:11]}  Kd8 {[%clk 0:00:17]} 66. Ne5 {[%clk 0:00:10]}  Ke8 {[%clk 0:00:18]} 67. Nd3 {[%clk 0:00:10]}  Kd8 {[%clk 0:00:18]} 68. Nf2 {[%clk 0:00:10]}  Ke8 {[%clk 0:00:19]} 69. e7 {[%clk 0:00:10]}  Kf7 {[%clk 0:00:20]} 70. Kd7 {[%clk 0:00:11]} 1-0


[Site "https://www.chess.com"]

[Event "Titled Tuesday Blitz July 6 2021"]
[White "Bon, Michael"]
[Black "Koelle, Tobias"]
[WhiteFideId "620696"]
[BlackFideId "16207378"]
[WhiteElo "2425"]
[BlackElo "2364"]
[Result "1-0"]
[Round "11"]
[TimeControl "180+1"]
[Date "2021.07.06"]
[WhiteClock "0:00:17"]
[BlackClock "0:00:20"]

1. e4 {[%clk 0:03:00]}  g6 {[%clk 0:02:56]} 2. d4 {[%clk 0:03:00]}  Bg7 {[%clk 0:02:57]} 3. Nc3 {[%clk 0:03:00]}  c5 {[%clk 0:02:47]} 4. d5 {[%clk 0:02:56]}  d6 {[%clk 0:02:40]} 5. f4 {[%clk 0:02:42]}  Bxc3+ {[%clk 0:02:34]} 6. bxc3 {[%clk 0:02:41]}  e5 {[%clk 0:02:35]} 7. dxe6 {[%clk 0:02:09]}  Bxe6 {[%clk 0:02:34]} 8. Nf3 {[%clk 0:02:07]}  Nc6 {[%clk 0:02:26]} 9. Bd3 {[%clk 0:01:59]}  Qa5 {[%clk 0:02:21]} 10. O-O {[%clk 0:01:54]}  Qxc3 {[%clk 0:02:20]} 11. Rb1 {[%clk 0:01:54]}  Qa5 {[%clk 0:02:07]} 12. Rxb7 {[%clk 0:01:50]}  Nge7 {[%clk 0:02:06]} 13. f5 {[%clk 0:01:46]}  Bc8 {[%clk 0:02:05]} 14. Rb5 {[%clk 0:01:31]}  Qxa2 {[%clk 0:01:58]} 15. Bb2 {[%clk 0:01:02]}  Rf8 {[%clk 0:01:54]} 16. Qd2 {[%clk 0:00:32]}  c4 {[%clk 0:01:48]} 17. Ra1 {[%clk 0:00:31]}  Qxa1+ {[%clk 0:01:46]} 18. Bxa1 {[%clk 0:00:31]}  cxd3 {[%clk 0:01:46]} 19. cxd3 {[%clk 0:00:30]}  gxf5 {[%clk 0:01:35]} 20. Ng5 {[%clk 0:00:30]}  Bd7 {[%clk 0:01:33]} 21. Nxh7 {[%clk 0:00:29]}  O-O-O {[%clk 0:01:05]} 22. Nxf8 {[%clk 0:00:26]}  Rxf8 {[%clk 0:01:06]} 23. Bf6 {[%clk 0:00:21]}  Kc7 {[%clk 0:01:04]} 24. Qb2 {[%clk 0:00:19]}  Bc8 {[%clk 0:01:02]} 25. Qc3 {[%clk 0:00:18]}  Re8 {[%clk 0:01:01]} 26. h4 {[%clk 0:00:12]}  fxe4 {[%clk 0:01:01]} 27. dxe4 {[%clk 0:00:13]}  Bd7 {[%clk 0:00:57]} 28. e5 {[%clk 0:00:13]}  Nc8 {[%clk 0:00:55]} 29. exd6+ {[%clk 0:00:12]}  Nxd6 {[%clk 0:00:56]} 30. Re5 {[%clk 0:00:10]}  Rb8 {[%clk 0:00:53]} 31. Kh2 {[%clk 0:00:09]}  Rb4 {[%clk 0:00:51]} 32. Rc5 {[%clk 0:00:08]}  Ne4 {[%clk 0:00:46]} 33. Qxb4 {[%clk 0:00:08]}  Nxf6 {[%clk 0:00:44]} 34. Qf4+ {[%clk 0:00:08]}  Kb6 {[%clk 0:00:44]} 35. Rxc6+ {[%clk 0:00:08]}  Bxc6 {[%clk 0:00:43]} 36. Qxf6 {[%clk 0:00:09]}  a5 {[%clk 0:00:43]} 37. Qa1 {[%clk 0:00:09]}  a4 {[%clk 0:00:44]} 38. h5 {[%clk 0:00:10]}  Be4 {[%clk 0:00:44]} 39. h6 {[%clk 0:00:10]}  Kb5 {[%clk 0:00:28]} 40. Qa3 {[%clk 0:00:11]}  Bg6 {[%clk 0:00:24]} 41. Kg3 {[%clk 0:00:12]}  Be4 {[%clk 0:00:22]} 42. Kf4 {[%clk 0:00:13]}  Bg6 {[%clk 0:00:23]} 43. Kg5 {[%clk 0:00:14]}  Kc4 {[%clk 0:00:23]} 44. g4 {[%clk 0:00:15]}  Kb5 {[%clk 0:00:20]} 45. Kf6 {[%clk 0:00:16]}  Ka5 {[%clk 0:00:20]} 46. Kg7 {[%clk 0:00:17]}  f5 {[%clk 0:00:19]} 47. h7 {[%clk 0:00:17]}  Bxh7 {[%clk 0:00:20]} 48. Kxh7 {[%clk 0:00:18]}  fxg4 {[%clk 0:00:20]} 49. Kg6 {[%clk 0:00:18]}  g3 {[%clk 0:00:21]} 50. Qxg3 {[%clk 0:00:18]}  Kb4 {[%clk 0:00:22]} 51. Qe1+ {[%clk 0:00:17]}  Kb3 {[%clk 0:00:22]} 52. Qb1+ {[%clk 0:00:17]}  Kc3 {[%clk 0:00:22]} 53. Qa1+ {[%clk 0:00:18]}  Kc2 {[%clk 0:00:22]} 54. Kf5 {[%clk 0:00:19]}  a3 {[%clk 0:00:22]} 55. Qxa3 {[%clk 0:00:18]}  Kb1 {[%clk 0:00:23]} 56. Ke4 {[%clk 0:00:18]}  Kc2 {[%clk 0:00:22]} 57. Kd4 {[%clk 0:00:16]}  Kb1 {[%clk 0:00:21]} 58. Qc3 {[%clk 0:00:16]}  Ka2 {[%clk 0:00:20]} 59. Qb4 {[%clk 0:00:17]} 1-0


[Site "https://www.chess.com"]